bitfinex-derivatives/quotes_SOLF0:USTF0_20250803
["timestamp","ask_amount","ask_price","bid_price","bid_amount"]
[1754238756928,3.42,161.65,161.6,3.4]
[1754238757229,6.1863,161.65,161.6,6.1881]
[1754238757528,3.42,161.64,161.61,3.4]
[1754238757832,3.42,161.63,161.61,3.4]
[1754238758125,3.42,161.63,161.62,3.4]
[1754238760132,9.6064,161.65,161.62,3.4]
[1754238760431,3.42,161.64,161.63,3.4]
[1754238761731,9.6067,161.64,161.63,3.4]
[1754238761923,3.42,161.64,161.63,3.4]
[1754238762430,3.42,161.69,161.63,3.4]
[1754238762631,8.013871,161.68,161.63,3.4]
[1754238762834,3.42,161.68,161.63,3.4]
[1754238763029,9.6052,161.68,161.63,6.1868]
[1754238763228,9.6052,161.68,161.64,3.4]
[1754238763629,9.6255,161.67,161.64,3.4]
[1754238764032,3.44,161.67,161.64,3.4]
[1754238765826,6.27315858,161.7,161.63,9.6969]
[1754238766032,3.44,161.68,161.64,3.51]
[1754238766233,4.60570789,161.67,161.64,3.51]
[1754238766427,9.6252,161.68,161.64,3.51]
[1754238766628,4.60557734,161.67,161.64,3.51]
[1754238766829,9.6252,161.68,161.64,3.51]
[1754238767130,4.60570789,161.67,161.64,3.51]
[1754238767425,9.6252,161.68,161.64,3.51]
[1754238767630,3.44,161.68,161.64,3.51]
[1754238767930,9.6249,161.69,161.64,3.51]
[1754238768133,4.60779812,161.68,161.65,3.51]
[1754238768328,3.44,161.74,161.67,3.51]
[1754238768534,14.23385356,161.73,161.67,9.6952]
[1754238768736,4.61035356,161.72,161.68,9.78315858]
[1754238768931,9.71315858,161.77,161.69,3.51]
[1754238769135,3.44,161.7,161.69,3.51]
[1754238769530,6.27315858,161.75,161.69,3.51]
[1754238769732,3.44,161.72,161.69,3.51]
[1754238769939,4.61309027,161.71,161.69,3.51]
[1754238770136,3.44,161.72,161.69,3.51]
[1754238770336,4.61431209,161.71,161.69,3.51]
[1754238770531,6.27315858,161.76,161.69,3.51]
[1754238770736,3.44,161.73,161.67,3.51]
[1754238770940,6.185,161.69,161.68,3.51]
[1754238771141,4.61431209,161.69,161.68,3.51]
[1754238772444,3.44,161.7,161.68,3.51]
[1754238772648,3.44,161.7,161.69,3.51]
[1754238772835,8.05592483,161.7,161.69,3.51]
[1754238773039,14.24032483,161.7,161.69,3.51]
[1754238773544,8.05592483,161.7,161.69,3.51]
[1754238774247,6.27315858,161.74,161.69,3.51]
[1754238774248,9.6237,161.72,161.69,3.51]
[1754238774435,4.61713176,161.71,161.69,3.51]
[1754238774640,6.1837,161.72,161.69,3.51]
[1754238774947,4.61713176,161.71,161.69,3.51]
[1754238775146,6.1841,161.71,161.69,3.51]
[1754238777447,9.6238,161.72,161.69,3.51]
[1754238777649,4.61801733,161.71,161.69,3.51]
[1754238777844,3.44,161.75,161.69,3.51]
[1754238778149,3.44,161.73,161.67,3.51]
[1754238778347,3.44,161.71,161.67,3.51]
[1754238778547,3.44,161.7,161.67,3.51]
[1754238779246,6.1841,161.71,161.67,3.51]
[1754238779450,9.6241,161.71,161.67,3.51]
[1754238779954,6.1845,161.7,161.67,3.51]
[1754238780246,3.44,161.69,161.68,3.51]
[1754238780550,3.44,161.72,161.64,3.51]
[1754238780851,3.44,161.7,161.65,3.51]
[1754238781543,6.27315858,161.73,161.65,3.51]
[1754238781742,3.44,161.7,161.61,3.51]
[1754238781947,3.44,161.68,161.61,3.51]
[1754238782145,3.44,161.66,161.61,3.51]
[1754238782346,3.44,161.65,161.61,3.51]
[1754238782752,6.186,161.66,161.62,3.51]
[1754238782950,6.27315858,161.69,161.62,3.51]
[1754238783149,4.61688549,161.68,161.62,6.27315858]
[1754238783349,4.61688549,161.68,161.63,3.51]
[1754238783350,6.186,161.66,161.63,3.51]
[1754238783551,3.44,161.68,161.63,3.51]
[1754238783944,3.44,161.67,161.63,3.51]
[1754238784143,6.27315858,161.71,161.63,3.51]
[1754238784345,3.44,161.69,161.63,3.51]
[1754238784648,8.05858001,161.68,161.63,3.51]
[1754238784848,3.44,161.68,161.63,3.51]
[1754238786647,3.44,161.67,161.63,3.51]
[1754238787044,3.44,161.71,161.66,6.27315858]
[1754238787247,4.62605197,161.7,161.67,3.51]
[1754238787450,3.44,161.71,161.67,3.51]
[1754238787755,8.06605917,161.7,161.67,3.51]
[1754238788055,3.44,161.7,161.67,3.51]
[1754238788350,3.44,161.7,161.67,9.6954]
[1754238788544,6.1833,161.73,161.68,3.51]
[1754238788749,8.0676909,161.72,161.68,3.51]
[1754238789053,4.6276909,161.71,161.67,6.1855]
[1754238789251,8.0676909,161.7,161.69,3.51]
[1754238789950,8.0676909,161.7,161.67,3.51]
[1754238789951,4.6276909,161.7,161.67,3.51]
[1754238790153,3.44,161.68,161.67,3.51]
[1754238791058,3.44,161.68,161.65,3.51]
[1754238791258,3.44,161.67,161.66,3.51]
[1754238791560,6.1848,161.69,161.66,3.51]
[1754238791858,3.44,161.68,161.65,3.51]
[1754238796155,9.6252,161.68,161.65,3.51]
[1754238796351,3.47,161.67,161.64,6.27315858]
[1754238796557,3.47,161.71,161.63,3.47]
[1754238796858,6.1856,161.67,161.62,12.46025858]
[1754238797057,8.09912212,161.66,161.65,3.47]
[1754238797254,6.1866,161.65,161.61,6.27315858]
[1754238797457,3.47,161.64,161.62,3.47]
[1754238797752,3.47,161.64,161.59,11.46473182]
[1754238797958,3.47,161.64,161.6,3.47]
[1754238798461,4.62943298,161.63,161.6,3.47]
[1754238798651,3.47,161.61,161.6,3.47]
[1754238799055,3.47,161.67,161.6,3.47]
[1754238799358,3.47,161.65,161.6,3.47]
[1754238799550,3.47,161.63,161.6,3.47]
[1754238800957,3.47,161.65,161.61,3.47]
[1754238801258,8.099582,161.64,161.61,3.47]
[1754238801455,3.47,161.64,161.61,3.47]
[1754238802858,3.47,161.63,161.6,3.47]
[1754238803057,6.27315858,161.68,161.59,12.46165858]
[1754238803058,3.47,161.62,161.59,12.46165858]
[1754238803359,3.47,161.62,161.61,3.47]
[1754238803859,3.47,161.64,161.61,3.47]
[1754238804058,3.47,161.63,161.62,3.47]
[1754238805057,8.10573019,161.63,161.62,3.47]
[1754238805358,3.47,161.63,161.62,3.47]
[1754238806756,3.47,161.69,161.62,3.47]
[1754238806959,4.63461543,161.68,161.63,6.27315858]
[1754238807159,4.63461543,161.67,161.64,3.47]
[1754238807459,4.63461543,161.66,161.64,3.47]
[1754238807759,3.47,161.68,161.64,3.47]
[1754238807960,4.63387344,161.67,161.64,6.1864]
[1754238808158,3.47,161.68,161.65,3.47]
[1754238809662,6.1848,161.69,161.65,3.47]
[1754238809863,3.47,161.67,161.66,3.47]
[1754238810251,3.47,161.66,161.62,3.47]
[1754238810452,3.47,161.64,161.58,3.47]
[1754238810762,3.47,161.62,161.58,3.47]
[1754238811060,3.47,161.6,161.59,3.47]
[1754238811656,8.09871642,161.6,161.55,6.27315858]
[1754238811856,3.47,161.6,161.58,3.47]
[1754238812762,3.47,161.6,161.59,3.47]
[1754238817264,3.47,161.6,161.56,3.47]
[1754238817670,3.47,161.6,161.56,6.1896]
[1754238817872,3.47,161.6,161.57,3.47]
[1754238818868,3.47,161.6,161.58,3.47]
[1754238819075,6.27315858,161.66,161.59,3.47]
[1754238819275,4.62224103,161.65,161.59,3.47]
[1754238819467,3.47,161.63,161.59,3.47]
[1754238820169,3.47,161.65,161.58,3.47]
[1754238820370,4.62262837,161.64,161.58,3.47]
[1754238820575,3.47,161.62,161.58,3.47]
[1754238820775,3.47,161.6,161.58,3.47]
[1754238820976,3.47,161.6,161.56,6.1895]
[1754238821276,9.6583,161.6,161.56,3.47]
[1754238821465,6.1883,161.6,161.55,12.46325858]
[1754238821670,3.47,161.58,161.53,6.27315858]
[1754238821976,3.47,161.57,161.54,3.47]
[1754238822568,3.47,161.57,161.54,9.6604]
[1754238822768,3.47,161.57,161.55,3.47]
[1754238822975,3.47,161.57,161.56,3.47]
[1754238823577,3.47,161.58,161.57,3.47]
[1754238824082,3.47,161.58,161.53,6.27315858]
[1754238824083,3.36,161.57,161.55,3.26]
[1754238824277,3.36,161.57,161.56,3.26]
[1754238824784,3.36,161.57,161.53,6.27315858]
[1754238824785,3.36,161.56,161.53,6.27315858]
[1754238824986,3.36,161.56,161.55,3.26]
[1754238825484,3.36,161.61,161.55,9.53315858]
[1754238825782,4.61725186,161.6,161.56,3.26]
[1754238825981,3.36,161.6,161.56,3.26]
[1754238826873,3.36,161.6,161.56,6.1896]
[1754238827080,3.36,161.6,161.57,3.26]
[1754238828185,9.5482,161.6,161.57,3.26]
[1754238828380,3.36,161.62,161.55,3.26]
[1754238828585,3.36,161.58,161.55,3.26]
[1754238829381,3.36,161.6,161.55,3.26]
[1754238829581,3.36,161.59,161.55,6.27315858]
[1754238829778,3.36,161.59,161.56,3.26]
[1754238829988,3.36,161.59,161.56,9.4496]
[1754238830189,3.36,161.59,161.57,3.26]
[1754238830385,3.36,161.59,161.58,3.26]
[1754238832583,6.188,161.61,161.58,3.26]
[1754238832785,3.36,161.6,161.59,3.26]
[1754238833497,9.5482,161.6,161.59,3.26]
[1754238834194,14.1650887,161.6,161.59,3.26]
[1754238835290,9.5487,161.59,161.56,3.26]
[1754238835595,3.36,161.58,161.57,3.26]
[1754238835791,3.36,161.57,161.55,3.26]
[1754238836094,3.36,161.57,161.52,3.26]
[1754238836292,3.36,161.57,161.53,6.1908]
[1754238836488,3.36,161.56,161.55,3.26]
[1754238836892,3.36,161.56,161.51,12.46485858]
[1754238837094,3.36,161.56,161.49,421.89315858]
[1754238837293,3.36,161.56,161.53,3.26]
[1754238837595,6.1904,161.55,161.53,3.26]
[1754238837795,3.36,161.54,161.53,3.26]
[1754238838296,9.5504,161.55,161.52,3.26]
[1754238839591,3.36,161.54,161.5,6.1919]
[1754238839891,3.36,161.56,161.5,3.26]
[1754238840093,3.36,161.54,161.5,3.26]
[1754238840297,3.36,161.53,161.5,6.1919]
[1754238840491,3.36,161.53,161.52,3.26]
[1754238841195,9.5509,161.53,161.52,3.26]
[1754238842188,3.36,161.53,161.52,3.26]
[1754238843391,3.36,161.53,161.48,3.26]
[1754238843790,6.27315858,161.56,161.52,3.26]
[1754238843791,3.36,161.54,161.52,3.26]
[1754238843993,3.36,161.54,161.53,3.26]
[1754238844187,7.97595996,161.54,161.53,3.26]
[1754238844494,9.5506,161.54,161.53,3.26]
[1754238844693,3.36,161.58,161.49,6.27315858]
[1754238844892,6.1903,161.55,161.51,6.1914]
[1754238845194,9.5503,161.55,161.52,3.26]
[1754238845385,3.36,161.56,161.53,6.1908]
[1754238845585,3.36,161.56,161.54,3.26]
[1754238845784,3.36,161.56,161.52,3.26]
[1754238846088,3.36,161.58,161.55,3.26]
[1754238846492,9.5491,161.58,161.55,3.26]
[1754238847694,9.5491,161.58,161.55,9.4501]
[1754238847893,6.1886,161.59,161.54,3.26]
[1754238848097,4.63022507,161.58,161.55,6.27315858]
[1754238848399,20.74941832,161.63,161.55,6.27315858]
[1754238848400,9.5482,161.6,161.57,3.26]
[1754238848896,20.74941832,161.63,161.58,3.26]
[1754238849095,3.36,161.61,161.58,3.26]
[1754238849297,4.6313117,161.6,161.58,3.26]
[1754238849599,4.6313117,161.6,161.51,5.18207964]
[1754238849600,24.10941832,161.63,161.59,3.26]
[1754238849896,3.36,161.61,161.59,3.26]
[1754238852200,6.1872,161.63,161.59,9.4485]
[1754238852395,4.63433592,161.62,161.6,3.26]
[1754238852596,6.1872,161.63,161.6,3.26]
[1754238852597,9.5472,161.63,161.6,3.26]
[1754238852905,4.63434234,161.62,161.6,3.26]
[1754238853093,9.5472,161.63,161.6,3.26]
[1754238853395,4.6374557,161.62,161.6,3.26]
[1754238853600,3.36,161.63,161.6,3.26]
[1754238853801,4.6374557,161.62,161.6,3.26]
[1754238854094,4.64013784,161.61,161.6,3.26]
[1754238854300,4.64013784,161.61,161.6,9.4482]
[1754238854499,132.67659584,161.65,161.6,6.1882]
[1754238854700,7.88046316,161.64,161.61,3.43]
[1754238854900,4.64046316,161.63,161.61,3.43]
[1754238855106,4.64046316,161.62,161.61,3.43]
[1754238856208,4.64046316,161.62,161.61,15.89095858]
[1754238856405,3.24,161.66,161.62,3.43]
[1754238856614,4.6437449,161.65,161.62,3.43]
[1754238856804,4.6437449,161.64,161.62,3.43]
[1754238857010,3.24,161.65,161.62,3.43]
[1754238857208,4.64361896,161.64,161.62,3.43]
[1754238857502,3.24,161.65,161.62,3.43]
[1754238857707,4.6425026,161.64,161.62,9.6174]
[1754238857910,3.24,161.69,161.63,9.70315858]
[1754238858111,4.64304948,161.68,161.64,3.43]
[1754238858309,4.64304948,161.67,161.65,3.43]
[1754238858609,9.4253,161.68,161.65,3.43]
[1754238859005,3.24,161.68,161.65,3.43]
[1754238859214,4.64452357,161.67,161.64,3.43]
[1754238859413,3.24,161.7,161.64,3.43]
[1754238859713,10.8275468,161.69,161.64,9.6167]
[1754238859915,3.24,161.67,161.66,3.43]
[1754238861718,3.24,161.7,161.66,3.43]
[1754238862013,3.24,161.68,161.67,3.43]
[1754238862815,7.877454,161.68,161.67,3.43]
[1754238863316,3.24,161.68,161.67,3.43]
[1754238863721,9.4251,161.68,161.67,3.43]
[1754238864019,14.06331637,161.68,161.67,3.43]
[1754238864315,6.1851,161.68,161.64,6.1864]
[1754238864515,3.24,161.68,161.66,3.43]
[1754238864710,3.24,161.68,161.67,3.43]
[1754238865012,9.4251,161.68,161.67,3.43]
[1754238869317,6.1849,161.69,161.67,3.43]
[1754238869812,9.4249,161.69,161.67,3.43]
[1754238870014,9.4249,161.69,161.65,6.27315858]
[1754238870317,9.4249,161.69,161.68,3.43]
[1754238871413,6.1852,161.68,161.66,3.43]
[1754238871616,3.24,161.67,161.63,6.27315858]
[1754238871817,3.24,161.67,161.64,3.43]
[1754238872013,9.4263,161.65,161.64,3.43]
[1754238874420,3.24,161.65,161.64,3.43]
[1754238874615,9.426,161.66,161.64,3.43]
[1754238875719,9.426,161.66,161.6,6.27315858]
[1754238875915,9.426,161.66,161.61,3.43]
[1754238876315,9.426,161.66,161.63,6.187]
[1754238876520,6.186,161.66,161.64,3.43]
[1754238876722,9.426,161.66,161.65,3.43]
[1754238878121,9.426,161.66,161.63,6.187]
[1754238878321,3.24,161.65,161.64,3.43]
[1754238879524,6.1857,161.67,161.64,3.43]
[1754238879726,9.4257,161.67,161.64,3.43]
[1754238880718,3.24,161.66,161.64,3.43]
[1754238883025,3.24,161.68,161.65,3.43]
[1754238883224,3.24,161.71,161.65,3.43]
[1754238883526,3.24,161.69,161.65,3.43]
[1754238883727,3.3,161.68,161.65,9.6162]
[1754238883921,3.3,161.7,161.59,3.42]
[1754238884121,3.3,161.68,161.61,3.42]
[1754238884625,3.3,161.65,161.63,3.42]
[1754238885524,9.486,161.66,161.63,3.42]
[1754238885926,9.486,161.66,161.63,9.607]
[1754238886226,9.486,161.66,161.64,3.42]
[1754238887122,3.3,161.7,161.65,3.42]
[1754238887323,3.3,161.68,161.65,3.42]
[1754238887523,3.3,161.67,161.65,3.42]
[1754238888328,3.3,161.67,161.65,9.6063]
[1754238888629,3.3,161.67,161.66,3.42]
[1754238888823,7.93461202,161.67,161.62,6.27315858]
[1754238889024,3.3,161.66,161.64,3.42]
[1754238889425,3.3,161.66,161.65,3.42]
[1754238889633,14.1232832,161.66,161.65,3.42]
[1754238889822,3.3,161.65,161.63,3.42]
[1754238890028,3.3,161.64,161.63,3.42]
[1754238890228,3.3,161.65,161.63,3.42]
[1754238890534,3.3,161.67,161.59,3.42]
[1754238890738,3.3,161.65,161.59,3.42]
[1754238891032,7.93984684,161.64,161.59,3.42]
[1754238891224,6.27315858,161.68,161.61,6.1877]
[1754238891420,3.3,161.66,161.62,3.42]
[1754238891620,3.3,161.64,161.62,3.42]
[1754238893231,4.64489274,161.63,161.62,3.42]
[1754238895624,3.3,161.71,161.62,6.27315858]
[1754238895932,3.3,161.71,161.64,6.27315858]
[1754238895933,4.64852721,161.7,161.64,6.27315858]
[1754238896129,10.83352721,161.69,161.65,9.606]
[1754238896329,4.64852721,161.68,161.66,3.42]
[1754238896530,4.64852721,161.67,161.66,3.42]
[1754238897737,4.64852721,161.67,161.66,9.6059]
[1754238898434,4.64852721,161.67,161.66,3.42]
[1754238899937,7.94852721,161.67,161.66,3.42]
[1754238900636,4.64852721,161.67,161.66,3.42]
[1754238900831,4.64852721,161.67,161.66,9.69315858]
[1754238901032,3.3,161.73,161.66,11.45523822]
[1754238901234,3.3,161.72,161.7,3.42]
[1754238901428,3.3,161.72,161.71,3.42]
[1754238901631,3.3,161.72,161.69,3.42]
[1754238901833,3.3,161.71,161.7,3.42]
[1754238904144,3.3,161.74,161.71,3.42]
[1754238904444,6.27315858,161.77,161.71,3.42]
[1754238904746,9.4832,161.74,161.71,3.42]
[1754238905044,3.3,161.78,161.72,3.42]
[1754238905234,9.4824,161.76,161.72,3.42]
[1754238905433,3.3,161.76,161.72,6.1833]
[1754238905642,3.3,161.76,161.73,3.42]
[1754238906141,9.4824,161.76,161.73,3.42]
[1754238906341,3.3,161.75,161.73,3.42]
[1754238907751,9.4825,161.75,161.73,3.42]
[1754238908046,9.4825,161.75,161.74,3.42]
[1754238910049,3.3,161.74,161.71,3.42]
[1754238910743,9.483,161.74,161.71,3.42]
[1754238910951,6.27315858,161.78,161.71,3.42]
[1754238911148,3.3,161.77,161.71,3.42]
[1754238911750,6.1829,161.74,161.71,3.42]
[1754238911942,3.3,161.73,161.72,3.42]
[1754238912451,6.183,161.74,161.72,3.42]
[1754238912749,9.483,161.74,161.73,3.42]
[1754238912938,14.02797634,161.74,161.73,3.42]
[1754238913440,3.3,161.72,161.71,3.42]
[1754238914049,3.37,161.7,161.69,3.39]
[1754238914347,3.37,161.71,161.68,6.1851]
[1754238914649,3.37,161.71,161.7,3.39]
[1754238915147,3.37,161.76,161.7,3.39]
[1754238915349,4.54298467,161.75,161.7,3.39]
[1754238915548,9.5535,161.73,161.7,3.39]
[1754238915746,4.54298467,161.72,161.7,3.39]
[1754238916250,9.5535,161.73,161.7,3.39]
[1754238916742,40.16150378,161.81,161.68,6.27315858]
[1754238916944,3.37,161.79,161.73,3.39]
[1754238917145,9.5525,161.75,161.74,3.39]
[1754238917344,3.37,161.75,161.74,3.39]
[1754238919153,9.5518,161.77,161.74,3.39]
[1754238919353,4.54196845,161.76,161.74,3.39]
[1754238919553,9.5518,161.77,161.74,3.39]
[1754238919851,4.54180977,161.76,161.74,3.39]
[1754238920055,9.5518,161.77,161.74,3.39]
[1754238920251,4.5419778,161.76,161.74,3.39]
[1754238920451,9.5515,161.78,161.71,3.39]
[1754238920751,4.5405393,161.77,161.71,3.39]
[1754238920953,9.5515,161.78,161.71,3.39]
[1754238920954,4.5405393,161.76,161.74,6.1828]
[1754238921144,6.1817,161.77,161.74,6.1828]
[1754238921346,4.54113281,161.76,161.74,6.1828]
[1754238921548,9.5517,161.77,161.74,6.1828]
[1754238921748,6.1814,161.78,161.76,3.39]
[1754238922150,4.54065339,161.77,161.76,3.39]
[1754238923055,3.37,161.76,161.73,3.39]
[1754238923259,3.37,161.8,161.73,9.573]
[1754238923457,6.1823,161.76,161.72,6.27315858]
[1754238923756,9.5523,161.76,161.75,3.39]
[1754238924155,3.37,161.76,161.75,3.39]
[1754238924456,9.5518,161.77,161.75,3.39]
[1754238924648,6.1821,161.76,161.75,3.39]
[1754238924846,9.5521,161.76,161.75,3.39]
[1754238927158,9.5517,161.77,161.75,3.39]
[1754238927860,3.37,161.81,161.75,3.39]
[1754238928059,4.54071963,161.8,161.75,3.39]
[1754238928260,4.54071963,161.79,161.75,3.39]
[1754238928460,4.54071963,161.78,161.76,6.1821]
[1754238928662,6.181,161.79,161.77,3.39]
[1754238928862,3.37,161.8,161.77,3.39]
[1754238929164,7.91111092,161.79,161.77,3.39]
[1754238929364,3.37,161.79,161.78,3.39]
[1754238929663,244.07200345,161.82,161.78,3.39]
[1754238929963,7.90920301,161.81,161.78,3.39]
[1754238930158,7.90920301,161.8,161.78,3.39]
[1754238930352,3.37,161.8,161.78,3.39]
[1754238930550,9.5507,161.8,161.78,3.39]
[1754238931256,9.5503,161.81,161.78,3.39]
[1754238931456,127.06200345,161.82,161.78,3.39]
[1754238931763,4.53850383,161.81,161.78,3.39]
[1754238931967,133.24220345,161.82,161.78,9.5711]
[1754238932161,7.90844706,161.81,161.78,3.39]
[1754238932361,3.37,161.81,161.78,3.39]
[1754238932765,127.06200345,161.82,161.78,3.39]
[1754238932966,130.43200345,161.82,161.78,3.39]
[1754238933166,6.1804,161.81,161.78,9.5713]
[1754238933465,3.37,161.82,161.79,3.39]
[1754238933860,6.18,161.82,161.79,3.39]
[1754238934061,3.37,161.83,161.79,3.39]
[1754238934257,6.1793,161.84,161.8,6.1805]
[1754238934454,3.37,161.84,161.81,3.39]
[1754238935269,113.62,161.86,161.81,3.39]
[1754238935474,4.53619826,161.85,161.82,3.39]
[1754238935768,3.37,161.87,161.82,3.39]
[1754238935971,9.5489,161.85,161.82,3.39]
[1754238936175,113.58,161.9,161.81,3.39]
[1754238936368,4.53937023,161.89,161.8,6.1803]
[1754238936568,4.53937023,161.89,161.81,3.39]
[1754238936569,3.37,161.87,161.81,3.39]
[1754238936777,7.90937023,161.86,161.75,5.18207964]
[1754238936972,6.27315858,161.9,161.82,3.39]
[1754238937276,3.37,161.83,161.79,6.27315858]
[1754238937574,3.37,161.81,161.73,421.69315858]
[1754238937770,3.37,161.81,161.74,3.39]
[1754238939379,3.37,161.8,161.76,3.39]
[1754238940279,3.37,161.79,161.76,3.39]
[1754238941480,9.551,161.79,161.76,3.39]
[1754238942080,3.37,161.79,161.76,3.39]
[1754238942978,3.37,161.78,161.76,3.39]
[1754238943182,6.1811,161.79,161.75,3.39]
[1754238943483,3.37,161.77,161.76,3.39]
[1754238944675,6.1811,161.79,161.76,3.39]
[1754238944883,3.46,161.79,161.76,3.39]
[1754238945276,6.1806,161.8,161.75,3.19]
[1754238945482,9.6406,161.8,161.75,3.19]
[1754238946182,9.6406,161.8,161.76,6.1819]
[1754238946383,9.6406,161.8,161.77,3.19]
[1754238946676,3.46,161.84,161.78,6.27315858]
[1754238946877,4.54909447,161.83,161.8,3.19]
[1754238947186,4.54909447,161.82,161.81,3.19]
[1754238947479,8.00909447,161.87,161.81,9.46315858]
[1754238947679,4.54909447,161.86,161.82,3.19]
[1754238947883,4.54909447,161.85,161.84,3.19]
[1754238948379,3.46,161.87,161.82,6.27315858]
[1754238948380,8.00909447,161.86,161.82,6.27315858]
[1754238948584,4.54909447,161.85,161.77,5.18207964]
[1754238948789,3.46,161.85,161.81,6.27315858]
[1754238949084,9.638,161.87,161.82,3.19]
[1754238949279,8.01031718,161.86,161.82,3.19]
[1754238949585,4.55031718,161.85,161.82,3.19]
[1754238949785,3.46,161.86,161.82,3.19]
[1754238950086,4.54962406,161.85,161.82,3.19]
[1754238950286,3.46,161.86,161.84,3.19]
[1754238950686,3.46,161.85,161.84,3.19]
[1754238951378,6.1776,161.88,161.81,6.27315858]
[1754238951578,4.54810738,161.87,161.85,3.19]
[1754238951775,4.54810738,161.86,161.84,3.19]
[1754238951982,3.46,161.86,161.83,6.1791]
[1754238952180,3.46,161.86,161.85,3.19]
[1754238952380,8.00810738,161.86,161.85,3.19]
[1754238952680,4.54810738,161.86,161.85,3.19]
[1754238953184,9.73315858,161.94,161.86,3.19]
[1754238953393,3.46,161.9,161.88,3.19]
[1754238953684,3.46,161.9,161.85,6.27315858]
[1754238953882,6.1763,161.92,161.85,6.27315858]
[1754238954078,4.54552187,161.91,161.86,3.19]
[1754238954285,6.1763,161.92,161.88,3.19]
[1754238954482,8.00345206,161.91,161.88,3.19]
[1754238954678,3.46,161.91,161.88,3.19]
[1754238954882,6.1763,161.92,161.88,3.19]
[1754238955185,3.46,161.94,161.89,3.19]
[1754238955484,3.46,161.92,161.82,3.19]
[1754238955688,115.6,161.95,161.87,3.19]
[1754238955689,3.46,161.9,161.87,3.19]
[1754238956189,6.1762,161.92,161.87,3.19]
[1754238956387,3.46,161.91,161.87,3.19]
[1754238956689,3.46,161.91,161.88,6.1775]
[1754238956882,3.46,161.91,161.9,3.19]
[1754238957283,9.6364,161.91,161.9,3.19]
[1754238957492,9.6364,161.91,161.86,6.27315858]
[1754238957493,3.46,161.9,161.89,3.19]
[1754238958489,3.46,161.9,161.86,6.27315858]
[1754238958786,3.46,161.9,161.88,3.19]
[1754238958984,6.1774,161.89,161.85,6.1785]
[1754238959181,3.46,161.88,161.87,3.19]
[1754238960584,6.27315858,161.94,161.88,3.19]
[1754238960783,3.46,161.92,161.88,3.19]
[1754238961083,6.1767,161.91,161.88,3.19]
[1754238961389,3.46,161.9,161.89,3.19]
[1754238961582,3.46,161.89,161.83,6.1793]
[1754238961783,3.46,161.89,161.82,6.27315858]
[1754238961784,3.46,161.89,161.86,3.19]
[1754238961981,3.46,161.89,161.87,3.19]